fUST/lending_fUST_20240830
["ID","MTS","AMOUNT","RATE_DAILY","PERIOD"]
[336593976,1724961047988,-500.0,0.00019452,2]
[336593977,1724961047998,-500.0,0.00019452,2]
[336593978,1724961048008,-827.12,0.00019452,2]
[336593979,1724961048017,-500.0,0.00019452,2]
[336593980,1724961048027,-500.0,0.00019452,2]
[336593981,1724961048037,-500.0,0.00019452,2]
[336593982,1724961048046,-500.0,0.00019452,2]
[336593983,1724961048056,-500.0,0.00019452,2]
[336593984,1724961048066,-500.0,0.00019452,2]
[336593985,1724961048078,-500.0,0.00019452,2]
[336593986,1724961048088,-500.0,0.00019452,2]
[336593987,1724961048098,-400.21675644,0.00019452,2]
[336593988,1724961048108,-500.0,0.00019452,2]
[336593989,1724961048118,-500.0,0.00019452,2]
[336593990,1724961048127,-500.0,0.00019452,2]
[336593991,1724961048137,-500.0,0.00019452,2]
[336593992,1724961048146,-500.0,0.00019452,2]
[336593993,1724961048155,-810.08,0.00019452,2]
[336593994,1724961048165,-500.0,0.00019452,2]
[336593995,1724961048176,-605.88348508,0.00019452,2]
[336593996,1724961048186,-500.0,0.00019452,2]
[336593997,1724961048196,-1110.12,0.00019452,2]
[336593998,1724961048207,-211.38,0.00019452,2]
[336593999,1724961048217,-500.0,0.00019452,2]
[336594000,1724961048226,-851.27,0.00019452,2]
[336594001,1724961048236,-500.0,0.00019452,2]
[336594002,1724961048246,-500.0,0.00019452,2]
[336594003,1724961048255,-500.0,0.00019452,2]
[336594004,1724961048265,-500.0,0.00019452,2]
[336594005,1724961048274,-500.0,0.00019452,2]
[336594006,1724961048284,-1630.15,0.00019452,2]
[336594007,1724961048295,-534.62,0.00019452,2]
[336594008,1724961048305,-1331.03,0.00019452,2]
[336594009,1724961048314,-501.55547075,0.00019452,2]
[336594010,1724961048324,-170.14203574,0.00019452,2]
[336594011,1724961048334,-500.0,0.00019452,2]
[336594012,1724961048343,-500.0,0.00019452,2]
[336594013,1724961048354,-739.7,0.00019452,2]
[336594014,1724961048363,-500.0,0.00019452,2]
[336594015,1724961048373,-934.47,0.00019452,2]
[336594016,1724961048383,-500.0,0.00019452,2]
[336594017,1724961048393,-500.0,0.00019452,2]
[336594018,1724961048402,-500.0,0.00019452,2]
[336594019,1724961048412,-973.56,0.00019452,2]
[336594020,1724961048423,-757.6,0.00019452,2]
[336594021,1724961048436,-500.0,0.00019452,2]
[336594022,1724961048446,-500.0,0.00019452,2]
[336594023,1724961048456,-500.0,0.00019452,2]
[336594024,1724961048466,-500.0,0.00019452,2]
[336594025,1724961048475,-500.0,0.00019452,2]
[336594026,1724961048485,-318.45377588,0.00019452,2]
[336594027,1724961048495,-503.87308445,0.00019452,2]
[336594028,1724961048505,-500.0,0.00019452,2]
[336594029,1724961048515,-500.0,0.00019452,2]
[336594030,1724961048525,-946.35,0.00019452,2]
[336594031,1724961048535,-500.0,0.00019452,2]
[336594032,1724961048545,-500.0,0.00019452,2]
[336594033,1724961048555,-500.0,0.00019452,2]
[336594034,1724961048565,-500.0,0.00019452,2]
[336594035,1724961048578,-914.73,0.00019452,2]
[336594036,1724961048587,-500.0,0.00019452,2]
[336594037,1724961048597,-500.0,0.00019452,2]
[336594038,1724961048606,-500.0,0.00019452,2]
[336594039,1724961048618,-500.0,0.00019452,2]
[336594040,1724961048629,-500.0,0.00019452,2]
[336594041,1724961048638,-500.0,0.00019452,2]
[336594042,1724961048649,-500.0,0.00019452,2]
[336594043,1724961048659,-187.85323693,0.00019452,2]
[336594044,1724961048669,-500.0,0.00019452,2]
[336594045,1724961048680,-500.0,0.00019452,2]
[336594046,1724961048689,-500.0,0.00019452,2]
[336594047,1724961048699,-500.0,0.00019452,2]
[336594048,1724961048708,-514.06,0.00019452,2]
[336594049,1724961048718,-500.0,0.00019452,2]
[336594050,1724961048727,-630.31,0.00019452,2]
[336594051,1724961048737,-500.0,0.00019452,2]
[336594052,1724961048747,-500.0,0.00019452,2]
[336594053,1724961048756,-500.0,0.00019452,2]
[336594054,1724961048766,-500.0,0.00019452,2]
[336594055,1724961048775,-500.0,0.00019452,2]
[336594056,1724961048784,-500.0,0.00019452,2]
[336594057,1724961048795,-500.0,0.00019452,2]
[336594058,1724961048805,-500.0,0.00019452,2]
[336594059,1724961048816,-500.0,0.00019452,2]
[336594060,1724961048825,-500.0,0.00019452,2]
[336594061,1724961048835,-500.0,0.00019452,2]
[336594062,1724961048845,-502.70363859,0.00019452,2]
[336594063,1724961048855,-500.0,0.00019452,2]
[336594064,1724961048866,-500.0,0.00019452,2]
[336594065,1724961048876,-500.0,0.00019452,2]
[336594066,1724961048885,-500.0,0.00019452,2]
[336594067,1724961048897,-500.0,0.00019452,2]
[336594068,1724961048908,-500.0,0.00019452,2]
[336594069,1724961048919,-821.0,0.00019452,2]
[336594070,1724961048930,-500.0,0.00019452,2]
[336594071,1724961048940,-500.0,0.00019452,2]
[336594072,1724961048951,-645.97,0.00019452,2]
[336594073,1724961048963,-500.0,0.00019452,2]
[336594074,1724961048973,-500.0,0.00019452,2]
[336594075,1724961048983,-500.0,0.00019452,2]
[336594076,1724961048995,-527.29,0.00019452,2]
[336594077,1724961049005,-500.0,0.00019452,2]
[336594078,1724961049015,-500.0,0.00019452,2]
[336594079,1724961049025,-500.0,0.00019452,2]
[336594080,1724961049035,-500.0,0.00019452,2]
[336594081,1724961049045,-500.0,0.00019452,2]
[336594082,1724961049055,-500.0,0.00019452,2]
[336594083,1724961049065,-560.47,0.00019452,2]
[336594084,1724961049075,-500.0,0.00019452,2]
[336594085,1724961049084,-500.0,0.00019452,2]
[336594086,1724961049094,-435.72596206,0.00019452,2]
[336594087,1724961049104,-500.0,0.00019452,2]
[336594088,1724961049115,-500.0,0.00019452,2]
[336594089,1724961049124,-500.0,0.00019452,2]
[336594090,1724961049133,-500.0,0.00019452,2]
[336594091,1724961049143,-500.0,0.00019452,2]
[336594092,1724961049153,-500.0,0.00019452,2]
[336594093,1724961049163,-500.0,0.00019452,2]
[336594094,1724961049174,-500.0,0.00019452,2]
[336594095,1724961049183,-500.0,0.00019452,2]
[336594096,1724961049194,-500.0,0.00019452,2]
[336594097,1724961049203,-500.0,0.00019452,2]
[336594098,1724961049213,-500.0,0.00019452,2]
[336594099,1724961049223,-500.0,0.00019452,2]
[336594100,1724961049233,-632.82,0.00019452,2]
[336594101,1724961049243,-567.42,0.00019452,2]
[336594102,1724961049252,-500.0,0.00019452,2]
[336594103,1724961049262,-500.0,0.00019452,2]
[336594104,1724961049272,-500.0,0.00019452,2]
[336594105,1724961049283,-500.0,0.00019452,2]
[336594106,1724961049293,-500.0,0.00019452,2]
[336594107,1724961049302,-500.0,0.00019452,2]
[336594108,1724961049313,-696.25,0.00019452,2]
[336594109,1724961049324,-500.0,0.00019452,2]
[336594110,1724961049335,-500.0,0.00019452,2]
[336594111,1724961049345,-609.0,0.00019452,2]
[336594112,1724961049356,-500.0,0.00019452,2]
[336594113,1724961049366,-743.9,0.00019452,2]
[336594114,1724961049379,-500.0,0.00019452,2]
[336594115,1724961049389,-500.0,0.00019452,2]
[336594116,1724961049400,-500.0,0.00019452,2]
[336594117,1724961049410,-500.0,0.00019452,2]
[336594118,1724961049420,-500.0,0.00019452,2]
[336594119,1724961049433,-500.0,0.00019452,2]
[336594120,1724961049443,-721.88,0.00019452,2]
[336594121,1724961049453,-500.0,0.00019452,2]
[336594122,1724961049464,-500.0,0.00019452,2]
[336594123,1724961049475,-500.0,0.00019452,2]
[336594124,1724961049487,-500.0,0.00019452,2]
[336594125,1724961049498,-500.0,0.00019452,2]
[336594126,1724961049508,-500.0,0.00019452,2]
[336594127,1724961049519,-500.0,0.00019452,2]
[336594128,1724961049530,-500.0,0.00019452,2]
[336594129,1724961049541,-500.0,0.00019452,2]
[336594130,1724961049550,-500.0,0.00019452,2]
[336594131,1724961049560,-500.0,0.00019452,2]
[336594132,1724961049571,-500.0,0.00019452,2]
[336594133,1724961049583,-503.60226031,0.00019452,2]
[336594134,1724961049593,-715.73,0.00019452,2]
[336594135,1724961049603,-1146.28,0.00019452,2]
[336594136,1724961049615,-500.0,0.00019452,2]
[336594137,1724961049626,-500.0,0.00019452,2]
[336594138,1724961049636,-500.0,0.00019452,2]
[336594139,1724961049647,-761.97,0.00019452,2]
[336594140,1724961049658,-500.0,0.00019452,2]
[336594141,1724961049668,-1051.0,0.00019452,2]
[336594142,1724961049680,-500.0,0.00019452,2]
[336594143,1724961049691,-628.44,0.00019452,2]
[336594144,1724961049700,-229.53493008,0.00019452,2]
[336594145,1724961049711,-500.0,0.00019452,2]
[336594146,1724961049721,-500.0,0.00019452,2]
[336594147,1724961049732,-1580.47,0.00019452,2]
[336594148,1724961049744,-1062.18,0.00019452,2]
[336594149,1724961049755,-500.0,0.00019452,2]
[336594150,1724961049764,-500.0,0.00019452,2]
[336594151,1724961049775,-500.0,0.00019452,2]
[336594152,1724961049785,-500.0,0.00019452,2]
[336594153,1724961049796,-15546.8260485,0.00019463,2]
[336594154,1724961049805,-500.40354254,0.00019473,2]
[336594155,1724961049816,-500.40567098,0.00019473,2]
[336594156,1724961049826,-500.0,0.00019473,2]
[336594157,1724961049837,-190.4624371,0.00019473,2]
[336594158,1724961049847,-500.0,0.00019473,2]
[336594159,1724961049858,-500.0,0.00019473,2]
[336594160,1724961049868,-1020.26,0.000195,2]
[336594161,1724961049878,-1302.66,0.000195,2]
[336594162,1724961049889,-344.864233,0.00019621,2]
[336594163,1724961049899,-292.757431,0.00019621,2]
[336594164,1724961049909,-206.032978,0.00019621,2]
[336594165,1724961049918,-223.809347,0.00019621,2]
[336594166,1724961049930,-2996.19,0.00019706,2]
[336594167,1724961049941,-2996.19,0.00019706,2]
[336594168,1724961049950,-2996.19,0.00019706,2]
[336594169,1724961049961,-2996.19,0.00019706,2]
[336594170,1724961049970,-2996.42383424,0.00019706,2]
[336594171,1724961049980,-15546.8260485,0.00019716,2]
[336594172,1724961049989,-500.0,0.00019726,2]
[336594173,1724961049999,-500.0,0.00019726,2]
[336594174,1724961050009,-500.0,0.00019726,2]
[336594175,1724961050018,-500.0,0.00019726,2]
[336594176,1724961050028,-500.0,0.00019726,2]
[336594177,1724961050038,-500.0,0.00019726,2]
[336594178,1724961050050,-500.0,0.00019726,2]
[336594179,1724961050062,-500.0,0.00019726,2]
[336594180,1724961050071,-500.0,0.00019726,2]
[336594181,1724961050081,-500.0,0.00019726,2]
[336594182,1724961050090,-500.0,0.00019726,2]
[336594183,1724961050101,-500.0,0.00019726,2]
[336594184,1724961050110,-500.0,0.00019726,2]
[336594185,1724961050120,-500.0,0.00019726,2]
[336594186,1724961050130,-500.0,0.00019726,2]
[336594187,1724961050141,-500.0,0.00019726,2]
[336594188,1724961050151,-500.0,0.00019726,2]
[336594189,1724961050161,-321.59327145,0.00019726,2]
[336594190,1724961050171,-500.0,0.00019726,2]
[336594191,1724961050183,-500.0,0.00019726,2]
[336594192,1724961050193,-1150.56,0.00019726,2]
[336594193,1724961050203,-500.0,0.00019726,2]
[336594194,1724961050213,-500.0,0.00019726,2]
[336594195,1724961050223,-176.09648138,0.00019726,2]
[336594196,1724961050232,-500.0,0.00019726,2]
[336594197,1724961050242,-500.0,0.00019726,2]
[336594198,1724961050252,-500.0,0.00019726,2]
[336594199,1724961050262,-500.0,0.00019726,2]
[336594200,1724961050272,-500.0,0.00019726,2]
[336594201,1724961050282,-500.0,0.00019726,2]
[336594202,1724961050291,-500.0,0.00019726,2]
[336594203,1724961050301,-500.0,0.00019726,2]
[336594204,1724961050311,-500.0,0.00019726,2]
[336594205,1724961050321,-216.4916526,0.00019726,2]
[336594206,1724961050331,-500.0,0.00019726,2]
[336594207,1724961050340,-909.37,0.00019726,2]
[336594208,1724961050350,-500.0,0.00019726,2]
[336594209,1724961050362,-500.0,0.00019726,2]
[336594210,1724961050371,-500.0,0.00019726,2]
[336594211,1724961050381,-500.0,0.00019726,2]
[336594212,1724961050391,-500.0,0.00019726,2]
[336594213,1724961050400,-503.00000002,0.00019726,2]
[336594214,1724961050410,-500.0,0.00019726,2]
[336594215,1724961050421,-500.0,0.00019726,2]
[336594216,1724961050433,-838.78,0.00019726,2]
[336594217,1724961050443,-500.0,0.00019726,2]
[336594218,1724961050453,-500.0,0.00019726,2]
[336594219,1724961050462,-500.0,0.00019726,2]
[336594220,1724961050472,-500.0,0.00019726,2]
[336594221,1724961050481,-500.0,0.00019726,2]
[336594222,1724961050492,-514.40998013,0.00019726,2]
[336594223,1724961050501,-500.0,0.00019726,2]
[336594224,1724961050511,-500.0,0.00019726,2]
[336594225,1724961050522,-500.0,0.00019726,2]
[336594226,1724961050533,-502.96066889,0.00019726,2]
[336594227,1724961050543,-560.28279278,0.00019726,2]
[336594228,1724961050553,-1221.17,0.00019726,2]
[336594229,1724961050564,-607.90773646,0.00019726,2]
[336594230,1724961050576,-500.0,0.00019726,2]
[336594231,1724961050586,-500.0,0.00019726,2]
[336594232,1724961050596,-500.0,0.00019726,2]
[336594233,1724961050605,-500.0,0.00019726,2]
[336594234,1724961050616,-500.0,0.00019726,2]
[336594235,1724961050625,-500.0,0.00019726,2]
[336594236,1724961050635,-500.0,0.00019726,2]
[336594237,1724961050646,-500.0,0.00019726,2]
[336594238,1724961050656,-500.0,0.00019726,2]
[336594239,1724961050667,-500.0,0.00019726,2]
[336594240,1724961050679,-500.0,0.00019726,2]
[336594241,1724961050690,-500.0,0.00019726,2]
[336594242,1724961050700,-500.0,0.00019726,2]
[336594243,1724961050711,-500.0,0.00019726,2]
[336594244,1724961050721,-500.0,0.00019726,2]
[336594245,1724961050732,-765.67,0.00019726,2]
[336594246,1724961050742,-500.0,0.00019726,2]
[336594247,1724961050752,-500.0,0.00019726,2]
[336594248,1724961050762,-1262.57,0.00019726,2]
[336594249,1724961050772,-1681.98,0.00019726,2]
[336594250,1724961050782,-905.43,0.00019726,2]
[336594251,1724961050794,-500.0,0.00019726,2]
[336594252,1724961050807,-290.46449112,0.00019726,2]
[336594253,1724961050819,-500.0,0.00019726,2]
[336594254,1724961050828,-500.0,0.00019726,2]
[336594255,1724961050839,-837.99,0.00019726,2]
[336594256,1724961050851,-500.0,0.00019726,2]
[336594257,1724961050862,-500.0,0.00019726,2]
[336594258,1724961050873,-877.29,0.00019726,2]
[336594259,1724961050882,-500.0,0.00019726,2]
[336594260,1724961050892,-500.0,0.00019726,2]
[336594261,1724961050902,-500.0,0.00019726,2]
[336594262,1724961050912,-500.0,0.00019726,2]
[336594263,1724961050923,-501.54095349,0.00019726,2]
[336594264,1724961050935,-500.0,0.00019726,2]
[336594265,1724961050946,-502.28072966,0.00019726,2]
[336594266,1724961050957,-730.23,0.00019726,2]
[336594267,1724961050967,-500.0,0.00019726,2]
[336594268,1724961050984,-500.0,0.00019726,2]
[336594269,1724961050994,-500.0,0.00019726,2]
[336594270,1724961051006,-500.0,0.00019726,2]
[336594271,1724961051016,-500.0,0.00019726,2]
[336594272,1724961051027,-500.0,0.00019726,2]
[336594273,1724961051037,-500.0,0.00019726,2]
[336594274,1724961051048,-1026.08,0.00019726,2]
[336594275,1724961051059,-502.61032171,0.00019726,2]
[336594276,1724961051069,-500.0,0.00019726,2]
[336594277,1724961051080,-500.0,0.00019726,2]
[336594278,1724961051091,-500.0,0.00019726,2]
[336594279,1724961051237,-500.0,0.00019726,2]
[336594280,1724961051249,-500.0,0.00019726,2]
[336594281,1724961051259,-505.85041933,0.00019726,2]
[336594282,1724961051269,-500.0,0.00019726,2]
[336594283,1724961051279,-500.0,0.00019726,2]
[336594284,1724961051289,-500.0,0.00019726,2]
[336594285,1724961051298,-998.11,0.00019726,2]
[336594286,1724961051308,-500.0,0.00019726,2]
[336594287,1724961051318,-500.0,0.00019726,2]
[336594288,1724961051327,-500.0,0.00019726,2]
[336594289,1724961051337,-621.06909077,0.00019726,2]
[336594290,1724961051346,-654.95,0.00019726,2]
[336594291,1724961051356,-500.0,0.00019726,2]
[336594292,1724961051367,-500.0,0.00019726,2]
[336594293,1724961051378,-500.0,0.00019726,2]
[336594294,1724961051389,-500.0,0.00019726,2]
[336594295,1724961051399,-500.0,0.00019726,2]
[336594296,1724961051408,-500.0,0.00019726,2]
[336594297,1724961051420,-500.0,0.00019726,2]
[336594298,1724961051432,-991.07,0.00019726,2]
[336594299,1724961051441,-500.0,0.00019726,2]
[336594300,1724961051451,-500.0,0.00019726,2]
[336594301,1724961051461,-500.0,0.00019726,2]
[336594302,1724961051472,-827.12,0.00019726,2]
[336594303,1724961051481,-500.0,0.00019726,2]
[336594304,1724961051493,-500.0,0.00019726,2]
[336594305,1724961051504,-501.05844802,0.00019726,2]
[336594306,1724961051514,-500.0,0.00019726,2]
[336594307,1724961051523,-500.0,0.00019726,2]
[336594308,1724961051533,-489.15234295,0.00019726,2]
[336594309,1724961051542,-500.0,0.00019726,2]
[336594310,1724961051551,-500.0,0.00019726,2]
[336594311,1724961051561,-409.06367315,0.00019726,2]
[336594312,1724961051571,-810.08,0.00019726,2]
[336594313,1724961051584,-500.0,0.00019726,2]
[336594314,1724961051593,-500.0,0.00019726,2]
[336594315,1724961051604,-1110.12,0.00019726,2]
[336594316,1724961051615,-211.38,0.00019726,2]
[336594317,1724961051625,-500.0,0.00019726,2]
[336594318,1724961051635,-851.27,0.00019726,2]
[336594319,1724961051644,-406.59635963,0.00019726,2]
[336594320,1724961051653,-500.0,0.00019726,2]
[336594321,1724961051664,-500.0,0.00019726,2]
[336594322,1724961051674,-1630.15,0.00019726,2]
[336594323,1724961051691,-534.62,0.00019726,2]
[336594324,1724961051701,-1331.03,0.00019726,2]
[336594325,1724961051710,-500.0,0.00019726,2]
[336594326,1724961051721,-500.0,0.00019726,2]
[336594327,1724961051731,-739.7,0.00019726,2]
[336594328,1724961051742,-934.47,0.00019726,2]
[336594329,1724961051751,-500.0,0.00019726,2]
[336594330,1724961051761,-614.66058138,0.00019726,2]
[336594331,1724961051771,-500.0,0.00019726,2]
[336594332,1724961051781,-973.56,0.00019726,2]
[336594333,1724961051791,-757.6,0.00019726,2]
[336594334,1724961051801,-500.0,0.00019726,2]
[336594335,1724961051811,-500.0,0.00019726,2]
[336594336,1724961051822,-500.0,0.00019726,2]
[336594337,1724961051832,-500.0,0.00019726,2]
[336594338,1724961051842,-500.0,0.00019726,2]
[336594339,1724961051851,-500.0,0.00019726,2]
[336594340,1724961051861,-500.0,0.00019726,2]
[336594341,1724961051871,-946.35,0.00019726,2]
[336594342,1724961051880,-500.0,0.00019726,2]
[336594343,1724961051890,-504.39884744,0.00019726,2]
[336594344,1724961051899,-500.0,0.00019726,2]
[336594345,1724961051908,-914.73,0.00019726,2]
[336594346,1724961051917,-500.0,0.00019726,2]
[336594347,1724961051927,-500.0,0.00019726,2]
[336594348,1724961051937,-500.0,0.00019726,2]
[336594349,1724961051946,-500.0,0.00019726,2]
[336594350,1724961051956,-500.0,0.00019726,2]
[336594351,1724961051966,-500.0,0.00019726,2]
[336594352,1724961051975,-296.40110232,0.00019726,2]
[336594353,1724961051985,-500.0,0.00019726,2]
[336594354,1724961051994,-184.74623724,0.00019726,2]
[336594355,1724961052004,-514.06,0.00019726,2]
[336594356,1724961052014,-630.31,0.00019726,2]
[336594357,1724961052024,-500.0,0.00019726,2]
[336594358,1724961052033,-500.0,0.00019726,2]
[336594359,1724961052043,-500.0,0.00019726,2]
[336594360,1724961052054,-500.0,0.00019726,2]
[336594361,1724961052064,-500.0,0.00019726,2]
[336594362,1724961052076,-500.0,0.00019726,2]
[336594363,1724961052087,-500.0,0.00019726,2]
[336594364,1724961052098,-500.0,0.00019726,2]
[336594365,1724961052107,-500.0,0.00019726,2]
[336594366,1724961052117,-500.0,0.00019726,2]
[336594367,1724961052127,-367.11,0.00019726,2]
[336594368,1724961052139,-500.0,0.00019726,2]
[336594369,1724961052149,-428.06209257,0.00019726,2]
[336594370,1724961052159,-500.0,0.00019726,2]
[336594371,1724961052169,-500.0,0.00019726,2]
[336594372,1724961052184,-500.0,0.00019726,2]
[336594373,1724961052193,-821.0,0.00019726,2]
[336594374,1724961052202,-454.42371613,0.00019726,2]
[336594375,1724961052212,-500.0,0.00019726,2]
[336594376,1724961052221,-645.97,0.00019726,2]
[336594377,1724961052231,-500.0,0.00019726,2]
[336594378,1724961052240,-500.0,0.00019726,2]
[336594379,1724961052250,-500.0,0.00019726,2]
[336594380,1724961052259,-527.29,0.00019726,2]
[336594381,1724961052268,-500.0,0.00019726,2]
[336594382,1724961052279,-500.0,0.00019726,2]
[336594383,1724961052289,-500.0,0.00019726,2]
[336594384,1724961052298,-500.0,0.00019726,2]
[336594385,1724961052309,-500.0,0.00019726,2]
[336594386,1724961052320,-560.47,0.00019726,2]
[336594387,1724961052330,-500.0,0.00019726,2]
[336594388,1724961052340,-500.0,0.00019726,2]
[336594389,1724961052351,-500.0,0.00019726,2]
[336594390,1724961052363,-502.64694305,0.00019726,2]
[336594391,1724961052372,-500.0,0.00019726,2]
[336594392,1724961052381,-500.0,0.00019726,2]
[336594393,1724961052393,-500.0,0.00019726,2]
[336594394,1724961052404,-500.0,0.00019726,2]
[336594395,1724961052415,-500.0,0.00019726,2]
[336594396,1724961052428,-500.0,0.00019726,2]
[336594397,1724961052437,-500.0,0.00019726,2]
[336594398,1724961052446,-500.0,0.00019726,2]
[336594399,1724961052455,-500.0,0.00019726,2]
[336594400,1724961052464,-632.82,0.00019726,2]
[336594401,1724961052474,-567.42,0.00019726,2]
[336594402,1724961052483,-500.0,0.00019726,2]
[336594403,1724961052495,-500.0,0.00019726,2]
[336594404,1724961052506,-500.0,0.00019726,2]
[336594405,1724961052518,-500.0,0.00019726,2]
[336594406,1724961052527,-500.0,0.00019726,2]
[336594407,1724961052537,-500.0,0.00019726,2]
[336594408,1724961052547,-696.25,0.00019726,2]
[336594409,1724961052556,-500.0,0.00019726,2]
[336594410,1724961052566,-609.0,0.00019726,2]
[336594411,1724961052580,-500.0,0.00019726,2]
[336594412,1724961052591,-743.9,0.00019726,2]
[336594413,1724961052601,-500.0,0.00019726,2]
[336594414,1724961052612,-306.24247626,0.00019726,2]
[336594415,1724961052622,-500.0,0.00019726,2]
[336594416,1724961052633,-500.0,0.00019726,2]
[336594417,1724961052644,-500.0,0.00019726,2]
[336594418,1724961052655,-500.0,0.00019726,2]
[336594419,1724961052666,-721.88,0.00019726,2]
[336594420,1724961052678,-500.0,0.00019726,2]
[336594421,1724961052687,-500.0,0.00019726,2]
[336594422,1724961052697,-500.0,0.00019726,2]
[336594423,1724961052709,-500.0,0.00019726,2]
[336594424,1724961052718,-500.0,0.00019726,2]
[336594425,1724961052728,-500.0,0.00019726,2]
[336594426,1724961052738,-250.80814492,0.00019726,2]
[336594427,1724961052780,-8.15478996,0.00019726,2]
[336594428,1724961052912,-500.0,0.00019178,2]
[336594429,1724961052922,-93.8,0.00019178,2]
[336594436,1724961661948,445.291854,0.00014247,2]
[336594457,1724962232425,-300.0,0.00018788,2]
[336594458,1724962232435,-250.0,0.00018789,2]
[336594459,1724962232445,-24900.0,0.00018789,2]
[336594460,1724962232455,-1072.49013704,0.00018978,2]
[336594461,1724962232465,-286.7884299,0.00019078,2]
[336594462,1724962232475,-11453.72690287,0.00019078,2]
[336594463,1724962232484,-286.78842987,0.00019147,2]
[336594464,1724962232493,-370.42,0.00019168,3]
[336594465,1724962232503,-8695.85537575,0.00019168,2]
[336594466,1724962232515,-21425.62129411,0.00019168,2]
[336594470,1724962238599,-515.31544674,0.00019168,2]
[336594471,1724962238609,-500.0,0.00019177,2]
[336594472,1724962238618,-618.96564973,0.00019177,2]
[336594473,1724962238627,-521.67563571,0.00019178,2]
[336594474,1724962238638,-500.0,0.00019178,2]
[336594475,1724962238647,-500.88746353,0.00019178,2]
[336594476,1724962238657,-500.0,0.00019178,2]
[336594477,1724962238666,-500.0,0.00019178,2]
[336594478,1724962238676,-500.76343885,0.00019178,2]
[336594479,1724962238685,-500.0,0.00019178,2]
[336594480,1724962238695,-500.0,0.00019178,2]
[336594481,1724962238705,-239.02319068,0.00019178,2]
[336594483,1724962238714,-500.0,0.00019178,2]
[336594484,1724962238726,-500.0,0.00019178,2]
[336594485,1724962238735,-500.0,0.00019178,2]
[336594486,1724962238745,-500.0,0.00019178,2]
[336594487,1724962238754,-500.0,0.00019178,2]
[336594488,1724962238763,-500.0,0.00019178,2]
[336594489,1724962238773,-500.0,0.00019178,2]
[336594490,1724962238782,-500.0,0.00019178,2]
[336594491,1724962238791,-582.4569121,0.00019178,2]
[336594492,1724962238801,-589.86423699,0.00019178,2]
[336594493,1724962238810,-500.0,0.00019178,2]
[336594494,1724962238820,-500.0,0.00019178,2]
[336594495,1724962238830,-500.0,0.00019178,2]
[336594496,1724962238841,-500.0,0.00019178,2]
[336594497,1724962238851,-500.0,0.00019178,2]
[336594498,1724962238861,-500.0,0.00019178,2]
[336594499,1724962238870,-500.0,0.00019178,2]
[336594500,1724962238881,-500.0,0.00019178,2]
[336594501,1724962238890,-500.0,0.00019178,2]
[336594502,1724962238900,-500.0,0.00019178,2]
[336594503,1724962238909,-500.0,0.00019178,2]
[336594504,1724962238919,-500.0,0.00019178,2]
[336594505,1724962238929,-500.0,0.00019178,2]